fUST/lending_fUST_20260120
["ID","MTS","AMOUNT","RATE_DAILY","PERIOD"]
[402759346,1768888839061,-500.0,9.198e-05,2]
[402759347,1768888839093,-500.0,9.198e-05,2]
[402759348,1768888839124,-500.0,9.198e-05,2]
[402759349,1768888839263,-500.0,9.198e-05,2]
[402759350,1768888839295,-500.0,9.198e-05,2]
[402759351,1768888839327,-500.0,9.198e-05,2]
[402759352,1768888839358,-500.0,9.198e-05,2]
[402759353,1768888858246,640.64473671,9.017e-05,2]
[402759354,1768888861188,2562.57894686,9.017e-05,2]
[402759355,1768888864256,2796.78631643,9.017e-05,2]
[402759356,1768888864282,2963.25051137,9.017e-05,2]
[402759357,1768888871787,300.0,9.198e-05,2]
[402759358,1768888883244,158.57,5.673e-05,2]
[402759359,1768888883755,317.14,6.189e-05,2]
[402759360,1768888884173,475.7,6.704e-05,2]
[402759361,1768888884577,634.27,7.22e-05,2]
[402759362,1768888885169,792.84,7.736e-05,2]
[402759363,1768888885974,951.41,8.252e-05,2]
[402759364,1768888886600,1109.97,8.767e-05,2]
[402759365,1768888909116,1011.55805504,9.01e-05,2]
[402759366,1768888916618,1285.30143359,8.708e-05,2]
[402759367,1768888916645,10000.01,8.708e-05,2]
[402759368,1768888916670,10000.01,8.708e-05,2]
[402759369,1768888916692,10000.01,8.708e-05,2]
[402759370,1768888916716,3588.06055791,8.708e-05,2]
[402759371,1768888922334,300.0,9.198e-05,2]
[402759372,1768888927937,157.10602206,9.142e-05,2]
[402759373,1768888975971,204.12,6.195e-05,2]
[402759374,1768888976382,306.18,6.712e-05,2]
[402759375,1768888976818,408.24,7.228e-05,2]
[402759376,1768888977268,510.3,7.744e-05,2]
[402759377,1768888977692,612.36,8.26e-05,2]
[402759378,1768888978152,714.42,8.777e-05,2]
[402759379,1768888982247,300.0,9.198e-05,2]
[402759383,1768889042496,300.0,9.198e-05,2]
[402759384,1768889042733,159.62665952,9.133e-05,2]
[402759385,1768889056254,200.97,6.716e-05,2]
[402759386,1768889056670,267.95,7.232e-05,2]
[402759387,1768889061528,334.94,7.749e-05,2]
[402759388,1768889062355,401.93,8.265e-05,2]
[402759389,1768889062467,468.92,8.782e-05,2]
[402759390,1768889102397,300.0,9.198e-05,2]
[402759391,1768889112233,445.202766,9.199e-05,2]
[402759392,1768889116519,2150.738,9.199e-05,2]
[402759393,1768889126960,1457.00655242,8.531e-05,2]
[402759394,1768889126984,2494.09194028,8.531e-05,2]
[402759395,1768889142626,182.7,6.285e-05,2]
[402759396,1768889143075,228.37,6.547e-05,2]
[402759397,1768889144011,274.04,6.809e-05,2]
[402759398,1768889144479,319.72,7.07e-05,2]
[402759399,1768889144851,365.39,7.332e-05,2]
[402759400,1768889145292,411.07,7.594e-05,2]
[402759401,1768889145720,456.74,7.856e-05,2]
[402759402,1768889162665,300.0,9.198e-05,2]
[402759403,1768889167680,701.48791801,8.929e-05,2]
[402759404,1768889216696,150.64240678,7.541e-05,2]
[402759406,1768889282658,159.62665952,9.133e-05,2]
[402759407,1768889283278,299.21,3.8e-06,2]
[402759411,1768889403567,159.62665952,9.133e-05,2]
[402759413,1768889410931,2150.738,9.199e-05,2]
[402759414,1768889417184,445.202766,9.199e-05,2]
[402759415,1768889424639,7244.44257448,9.099e-05,2]
[402759416,1768889424668,10000.01,9.099e-05,2]
[402759417,1768889424697,10000.01,9.099e-05,2]
[402759418,1768889424726,10000.01,9.099e-05,2]
[402759419,1768889424754,10000.01,9.099e-05,2]
[402759420,1768889424782,10000.01,9.099e-05,2]
[402759421,1768889424809,10000.01,9.099e-05,2]
[402759422,1768889424837,10000.01,9.099e-05,2]
[402759423,1768889424865,10000.01,9.099e-05,2]
[402759471,1768889432553,-1152.96700882,9.099e-05,2]
[402759550,1768889438805,-911602.5104167,9.099e-05,2]
[402759551,1768889438815,-549.0,9.199e-05,2]
[402759553,1768889438825,-346.1212996,9.207e-05,2]
[402759555,1768889438835,-681.07414169,9.207e-05,2]
[402759557,1768889438845,-351.35001937,9.298e-05,2]
[402759558,1768889438855,-3125.8450011,9.299e-05,2]
[402759560,1768889438865,-452.28739534,9.398e-05,2]
[402759562,1768889438874,-1809.14958135,9.398e-05,2]
[402759563,1768889438885,-218.04942769,9.398e-05,2]
[402759565,1768889438895,-4066.51597148,9.398e-05,2]
[402759567,1768889438905,-1718.85978671,9.398e-05,2]
[402759569,1768889438915,-10000.01,9.416e-05,2]
[402759570,1768889438924,-268.21366462,9.682e-05,2]
[402759572,1768889438934,-3773.0,9.698e-05,2]
[402759574,1768889438944,-2230.315306,9.747e-05,2]
[402759576,1768889438954,-461.67526834,9.747e-05,2]
[402759577,1768889438963,-500.0,9.837e-05,2]
[402759579,1768889438973,-649.0,9.837e-05,2]
[402759581,1768889438982,-500.0,9.837e-05,2]
[402759583,1768889438992,-500.0,9.837e-05,2]
[402759585,1768889439001,-201.05642643,9.837e-05,2]
[402759586,1768889439011,-500.0,9.837e-05,2]
[402759588,1768889439020,-500.0,9.928e-05,2]
[402759590,1768889439031,-200.1727026,9.974e-05,2]
[402759592,1768889439041,-200.27778288,9.974e-05,2]
[402759593,1768889439052,-500.0,9.974e-05,2]
[402759595,1768889439062,-649.0,9.974e-05,2]
[402759597,1768889439073,-500.0,9.974e-05,2]
[402759599,1768889439083,-152.5128342,9.974e-05,2]
[402759601,1768889439093,-500.0,9.974e-05,2]
[402759602,1768889439103,-500.0,9.974e-05,2]
[402759604,1768889439113,-152.87827271,9.974e-05,2]
[402759606,1768889439123,-1500.24409256,9.981e-05,2]
[402759608,1768889439132,-5178.66776551,0.0001,2]
[402759609,1768889439141,-160.0,0.0001,2]
[402759611,1768889439151,-30000.0,0.0001007,2]
[402759613,1768889439161,-250.53341844,0.00010111,2]
[402759615,1768889439175,-250.64324446,0.00010111,2]
[402759616,1768889439185,-500.0,0.00010111,2]
[402759618,1768889439194,-649.0,0.00010111,2]
[402759620,1768889439204,-609.94217832,0.00010111,2]
[402759622,1768889439213,-500.0,0.00010111,2]
[402759623,1768889439223,-200.48150031,0.00010111,2]
[402759625,1768889439232,-500.0,0.00010111,2]
[402759627,1768889439242,-152.35672739,0.00010111,2]
[402759628,1768889439252,-698.17,0.00010148,2]
[402759630,1768889439262,-500.0,0.00010248,2]
[402759632,1768889439271,-500.0,0.00010248,2]
[402759634,1768889439282,-649.0,0.00010248,2]
[402759635,1768889439291,-159.65895617,0.00010248,2]
[402759637,1768889439301,-500.0,0.00010248,2]
[402759639,1768889439310,-250.70731142,0.00010248,2]
[402759641,1768889439320,-371.16340839,0.00010248,2]
[402759642,1768889439329,-2312.83697232,0.00010295,2]
[402759644,1768889439339,-478.75725327,0.00010295,2]
[402759646,1768889439348,-242.13939155,0.00010362,2]
[402759648,1768889439360,-126.41968337,0.00010362,2]
[402759649,1768889439370,-500.0,0.00010385,2]
[402759651,1768889439379,-649.0,0.00010385,2]
[402759653,1768889439389,-500.0,0.00010385,2]
[402759655,1768889439401,-779.0,0.000104,2]
[402759657,1768889439411,-198.96,0.00010404,2]
[402759658,1768889439420,-500.0,0.00010522,2]
[402759660,1768889439430,-500.0,0.00010522,2]
[402759662,1768889439440,-649.0,0.00010522,2]
[402759664,1768889439449,-504.17773209,0.00010522,2]
[402759665,1768889439459,-500.0,0.00010659,2]
[402759667,1768889439468,-649.0,0.00010659,2]
[402759669,1768889439477,-500.0,0.00010796,2]
[402759671,1768889439487,-285.98618787,0.00010796,2]
[402759672,1768889439501,-649.0,0.00010796,2]
[402759674,1768889439510,-160.0,0.00010796,2]
[402759676,1768889439519,-160.0,0.00010796,2]
[402759677,1768889439528,-1158.62434008,0.00010843,2]
[402759679,1768889439540,-1239.78760022,0.00010843,2]
[402759681,1768889439550,-496.47127164,0.00010843,2]
[402759683,1768889439560,-947.74112814,0.000109,2]
[402759685,1768889439578,-52.25887186,0.000109,2]
[402759687,1768889439587,-420.98124166,0.000109,2]
[402759720,1768889440799,-579.01875834,0.000109,2]
[402759721,1768889440809,-1000.0,0.000109,2]
[402759722,1768889440818,-408.85174047,0.000109,2]
[402759723,1768889440829,-591.14825953,0.000109,2]
[402759724,1768889440838,-260.31237144,0.000109,2]
[402759741,1768889441166,-3e-08,0.000109,2]
[402759813,1768889443655,-739.68762853,0.000109,2]
[402759815,1768889443665,-1000.0,0.000109,2]
[402759816,1768889443675,-1000.0,0.000109,2]
[402759817,1768889443685,-1000.0,0.000109,2]
[402759818,1768889443694,-1000.0,0.000109,2]
[402759819,1768889443704,-393.26966152,0.000109,2]
[402759834,1768889446756,-606.73033848,0.000109,2]
[402759835,1768889446765,-169.38,0.000109,2]
[402759836,1768889446775,-649.0,0.00010933,2]
[402759837,1768889446784,-160.0,0.00011,2]
[402759838,1768889446794,-160.0,0.00011,2]
[402759839,1768889446804,-150.88226918,0.00011,2]
[402759840,1768889446814,-151.0,0.00011,2]
[402759841,1768889446823,-151.0,0.00011,2]
[402759842,1768889446833,-2154.459,0.00011035,2]
[402759843,1768889446843,-1368.0,0.00011035,2]
[402759844,1768889446852,-795.927,0.00011035,2]
[402759845,1768889446862,-199.667,0.00011035,2]
[402759846,1768889446872,-417.313,0.00011035,2]
[402759847,1768889446881,-649.0,0.0001107,2]
[402759848,1768889446891,-151.0,0.000111,2]
[402759849,1768889446901,-169.38,0.00011174,2]
[402759850,1768889446911,-150.468,0.00011197,2]
[402759851,1768889446921,-150.369,0.00011197,2]
[402759852,1768889446930,-218.401,0.00011197,2]
[402759853,1768889446939,-150.264,0.00011197,2]
[402759854,1768889446950,-408.42313353,0.00011207,2]
[402759855,1768889446960,-649.0,0.00011207,2]
[402759856,1768889446970,-151.0,0.000113,2]
[402759857,1768889446980,-649.0,0.00011344,2]
[402759858,1768889446991,-2487.15318209,0.00011391,2]
[402759859,1768889447001,-514.84070869,0.00011391,2]
[402759860,1768889447012,-151.0,0.000114,2]
[402759861,1768889447022,-169.38800679,0.00011448,2]
[402759862,1768889447033,-649.0,0.00011481,2]
[402759863,1768889447042,-151.0,0.000115,2]
[402759864,1768889447053,-3000.0,0.000115,30]
[402759865,1768889447063,-3000.0,0.0001151,30]
[402759866,1768889447072,-3000.0,0.0001152,30]
[402759867,1768889447082,-3000.0,0.0001153,30]
[402759868,1768889447091,-3000.0,0.0001154,30]
[402759869,1768889447103,-151.0,0.0001154,2]
[402759870,1768889447112,-151.0,0.0001154,2]
[402759871,1768889447122,-151.0,0.0001154,2]
[402759872,1768889447131,-255.654577,0.0001154,2]
[402759873,1768889447140,-3000.0,0.0001155,30]
[402759874,1768889447150,-3000.0,0.0001156,30]
[402759875,1768889447159,-151.0,0.0001156,2]
[402759876,1768889447169,-3000.0,0.0001157,30]
[402759877,1768889447178,-3000.0,0.0001158,30]
[402759878,1768889447188,-174.61919141,0.00011589,2]
[402759879,1768889447197,-3000.0,0.0001159,30]
[402759880,1768889447207,-160.0,0.000116,2]
[402759881,1768889447389,-160.0,0.000116,2]
[402759882,1768889447400,-4222.720102,0.000116,30]
[402759883,1768889447410,-151.0,0.000116,2]
[402759884,1768889447419,-467.28649404,0.000116,2]
[402759885,1768889447429,-649.0,0.00011618,2]
[402759886,1768889447439,-160.0,0.00011697,3]
[402759887,1768889447452,-151.0,0.000117,2]
[402759888,1768889447463,-151.0,0.000117,2]
[402759889,1768889447472,-649.0,0.00011755,2]
[402759890,1768889447481,-151.0,0.000118,2]
[402759891,1768889447492,-649.0,0.00011892,2]
[402759892,1768889447502,-151.0,0.000119,2]
[402759893,1768889447511,-151.0,0.000119,2]
[402759894,1768889447521,-2579.17784983,0.00011939,2]
[402759895,1768889447531,-533.88981491,0.00011939,2]
[402759896,1768889447542,-160.0,0.00012,2]
[402759897,1768889447553,-160.0,0.00012,2]
[402759898,1768889447566,-151.0,0.00012,2]
[402759899,1768889447577,-649.0,0.00012029,2]
[402759900,1768889447588,-160.0,0.00012053,4]
[402759901,1768889447599,-14026.171823,0.00012082,2]
[402759902,1768889447610,-4971.04746976,0.00012082,2]
[402759903,1768889447621,-16425.147356,0.00012096,2]
[402759904,1768889447631,-151.0,0.00012096,2]
[402759905,1768889447640,-151.0,0.00012096,2]
[402759906,1768889447650,-151.0,0.00012096,2]
[402759907,1768889447660,-151.0,0.000121,2]
[402759908,1768889447670,-7114.926002,0.000121,2]
[402759909,1768889447680,-151.0,0.000121,2]
[402759910,1768889447690,-7889.803743,0.000121,2]
[402759911,1768889447699,-152.767114,0.000121,2]
[402759912,1768889447708,-151.0,0.000121,2]
[402759913,1768889447718,-181.08010149,0.00012137,2]
[402759914,1768889447728,-649.0,0.00012166,2]
[402759915,1768889447737,-151.0,0.000122,2]
[402759916,1768889447747,-7003.39613212,0.00012233,2]
[402759917,1768889456877,1780.1817454,9.05e-05,2]
[402759918,1768889476747,500.0,9.198e-05,2]
[402759919,1768889476780,500.0,9.198e-05,2]
[402759920,1768889476818,313.89709541,9.198e-05,2]
[402759921,1768889476853,500.0,9.198e-05,2]
[402759922,1768889476884,500.0,9.198e-05,2]
[402759923,1768889476919,500.0,9.198e-05,2]
[402759924,1768889476955,500.0,9.198e-05,2]
[402759925,1768889476987,500.0,9.198e-05,2]
[402759926,1768889477019,500.0,9.198e-05,2]
[402759927,1768889477049,359.67978793,9.198e-05,2]
[402759928,1768889477080,500.0,9.198e-05,2]
[402759929,1768889477118,193.00182356,9.198e-05,2]
[402759930,1768889492977,574.82675232,9.098e-05,2]
[402759931,1768889494476,218.39083151,9.098e-05,2]
[402759932,1768889495994,206.63108755,9.098e-05,2]
[402759933,1768889496030,404.28835385,9.098e-05,2]
[402759934,1768889496082,500.0,9.098e-05,2]
[402759935,1768889496134,299.22242484,9.098e-05,2]
[402759936,1768889496192,643.11627186,9.098e-05,2]
[402759937,1768889560315,6.77382577,7.355e-05,2]
[402759938,1768889560503,168.47617423,7.355e-05,2]
[402759939,1768889560761,204.46,7.638e-05,2]
[402759940,1768889561188,233.66,7.921e-05,2]
[402759941,1768889561614,262.87,8.204e-05,2]
[402759942,1768889562051,292.08,8.486e-05,2]
[402759943,1768889580623,10000.01,9.099e-05,2]
[402759944,1768889580648,10000.01,9.099e-05,2]
[402759945,1768889580675,10000.01,9.099e-05,2]
[402759946,1768889580699,10000.01,9.099e-05,2]
[402759947,1768889580725,10000.01,9.099e-05,2]
[402759948,1768889580749,10000.01,9.099e-05,2]
[402759949,1768889595509,-2952.48092324,9.099e-05,2]
[402759950,1768889595616,-10000.01,9.099e-05,2]
[402759951,1768889598405,-10000.01,9.099e-05,2]
[402759952,1768889598531,-10000.01,9.099e-05,2]
[402759953,1768889601485,-10000.01,9.099e-05,2]
[402759954,1768889640188,167.0,4.2e-07,2]
[402759955,1768889641718,-221.73,7.544e-05,2]
[402759956,1768889641743,-289.37141011,7.903e-05,2]
[402759957,1768889646797,-154.08858989,7.903e-05,2]
[402759958,1768889646822,-219.13966606,8.262e-05,2]
[402759959,1768889648410,-300.0,8.262e-05,2]
[402759960,1768889717572,-206.66,7.189e-05,2]
[402759961,1768889717600,-63.30954869,7.532e-05,2]
[402759962,1768889719656,-276.19095706,7.532e-05,2]
[402759963,1768889723491,-73.80949425,7.532e-05,2]
[402759964,1768889723519,-222.80954869,7.874e-05,2]
[402759965,1768889727751,-201.04734204,7.874e-05,2]
[402759966,1768889748925,-196.11310927,7.874e-05,2]
[402759967,1768889748959,-826.62,8.216e-05,2]
[402759968,1768889748994,-1033.28,8.559e-05,2]
[402759969,1768889749030,-1239.93,8.901e-05,2]
[402759970,1768889749059,-152.87358206,9.098e-05,2]
[402759971,1768889749101,-402.37872663,9.098e-05,2]
[402759972,1768889749133,-300.0,9.098e-05,2]
[402759973,1768889749165,-300.0,9.098e-05,2]
[402759974,1768889749197,-178.0,9.098e-05,2]
[402759975,1768889749405,-741.61916408,9.098e-05,2]
[402759976,1768889754825,-458.38083592,9.098e-05,2]
[402759977,1768889754861,-9083.24832816,9.098e-05,2]
[402759978,1768889807781,-240.46077094,7.458e-05,2]
[402759979,1768889809383,-45.54922906,7.458e-05,2]
[402759980,1768889809414,-143.21,7.813e-05,2]
[402759981,1768889812039,-276.76549102,7.813e-05,2]
[402759982,1768889867530,-152.03450898,7.813e-05,2]
[402759983,1768889867552,-29.45,7.991e-05,2]
[402759984,1768889878645,286.38,6.826e-05,2]
[402759985,1768889881835,-572.76,7.152e-05,2]
[402759986,1768889881878,-859.15,7.477e-05,2]
[402759987,1768889881928,-1145.53,7.802e-05,2]
[402759988,1768889881966,-320.38119672,7.991e-05,2]
[402759989,1768889882007,-1431.91,8.127e-05,2]
[402759990,1768889882149,-1340.54760656,8.452e-05,2]
[402759991,1768889882194,-377.74239344,8.452e-05,2]
[402759992,1768889882236,-2004.67,8.777e-05,2]
[402759993,1768889882274,-500.0,9.097e-05,2]
[402759994,1768889882329,-500.0,9.097e-05,2]
[402759995,1768889882383,-500.0,9.097e-05,2]
[402759996,1768889882432,-500.0,9.097e-05,2]
[402759997,1768889882478,-500.0,9.097e-05,2]
[402759998,1768889882575,-500.0,9.097e-05,2]
[402759999,1768889882619,-437.39570231,9.097e-05,2]
[402760000,1768889882676,-500.0,9.097e-05,2]
[402760001,1768889882724,-500.0,9.097e-05,2]
[402760002,1768889882782,-500.0,9.097e-05,2]
[402760003,1768889882830,-191.30835797,9.097e-05,2]
[402760004,1768889882892,-500.0,9.097e-05,2]
[402760005,1768889882939,-500.0,9.097e-05,2]
[402760006,1768889883006,-500.0,9.097e-05,2]
[402760007,1768889883065,-500.0,9.097e-05,2]
[402760008,1768889883111,-242.60187944,9.097e-05,2]
[402760009,1768889883512,-257.39812056,9.097e-05,2]
[402760010,1768889883549,-500.0,9.097e-05,2]
[402760011,1768889883587,-389.56849634,9.097e-05,2]
[402760012,1768889883623,-500.0,9.097e-05,2]
[402760013,1768889883663,-500.0,9.097e-05,2]
[402760014,1768889883696,-500.0,9.097e-05,2]
[402760015,1768889883808,-300.0,9.096e-05,2]
[402760016,1768889884281,-192.58333368,9.098e-05,2]
[402760017,1768889884302,-4706.0767662,9.098e-05,2]
[402760018,1768889884318,-300.0,9.098e-05,2]
[402760019,1768889884334,-9400.01,9.098e-05,2]
[402760020,1768889884350,-10000.01,9.098e-05,2]
[402760021,1768889884366,-1342.29509776,9.098e-05,2]
[402760023,1768889942433,300.0,9.098e-05,2]
[402760024,1768889962527,-151.0,0.00013726,30]
[402760025,1768889964037,-16.90474936,0.00013726,30]
[402760026,1768889964059,-134.09525064,0.00013781,30]
[402760027,1768889965541,-33.80949872,0.00013781,30]
[402760028,1768889971105,417.08,7.234e-05,2]
[402760029,1768889971595,834.16,7.579e-05,2]
[402760030,1768889972025,1251.25,7.923e-05,2]
[402760031,1768889972451,1668.33,8.268e-05,2]
[402760032,1768889972895,2085.41,8.612e-05,2]
[402760033,1768889973318,2502.49,8.957e-05,2]
[402760034,1768890002785,300.0,9.098e-05,2]
[402760035,1768890004936,641.29,9.098e-05,2]
[402760036,1768890004966,558.71,9.098e-05,2]
[402760037,1768890009826,250.0,9.099e-05,2]
[402760038,1768890010558,250.0,9.099e-05,2]
[402760039,1768890016511,2150.738,9.099e-05,2]
[402760040,1768890018437,-151.0,0.00013479,8]
[402760041,1768890022962,-9.0,0.00013479,8]
[402760042,1768890027278,576.81203977,9.098e-05,2]
[402760043,1768890029257,159.71063359,9.098e-05,2]
[402760044,1768890030031,376.61872182,9.098e-05,2]
[402760045,1768890038522,445.202766,9.099e-05,2]
[402760046,1768890050787,325.72,6.92e-05,2]
[402760047,1768890051318,651.43,7.249e-05,2]
[402760048,1768890052246,977.15,7.579e-05,2]
[402760049,1768890052683,1302.87,7.908e-05,2]
[402760050,1768890053090,1628.59,8.238e-05,2]
[402760051,1768890053516,346.45783882,8.567e-05,2]
[402760052,1768890053565,1607.84216118,8.567e-05,2]
[402760053,1768890054083,2280.02,8.897e-05,2]
[402760054,1768890059150,6112.14783882,8.98e-05,2]
[402760055,1768890059177,447.98611528,8.98e-05,2]
[402760056,1768890062713,300.0,9.098e-05,2]
[402760057,1768890102223,161.656,8.917e-05,2]
[402760058,1768890122278,300.0,9.098e-05,2]
[402760059,1768890132648,221.71,6.887e-05,2]
[402760060,1768890133104,443.42,7.215e-05,2]
[402760061,1768890133540,665.13,7.542e-05,2]
[402760062,1768890134071,886.84,7.87e-05,2]
[402760063,1768890134508,1108.55,8.198e-05,2]
[402760064,1768890134950,1330.26,8.526e-05,2]
[402760065,1768890135402,1551.97,8.854e-05,2]
[402760066,1768890182630,300.0,9.098e-05,2]
[402760067,1768890212563,285.4,5.898e-05,2]
[402760068,1768890213022,428.1,6.166e-05,2]
[402760069,1768890213594,570.8,6.434e-05,2]
[402760070,1768890214201,713.5,6.702e-05,2]
[402760071,1768890214443,284.68788472,6.97e-05,2]
[402760072,1768890214472,571.51211528,6.97e-05,2]
[402760073,1768890215457,998.9,7.238e-05,2]
[402760074,1768890215895,1141.6,7.506e-05,2]
[402760075,1768890216364,1284.3,7.774e-05,2]
[402760076,1768890216770,1427.0,8.043e-05,2]
[402760079,1768890291665,178.5,6.412e-05,2]
[402760080,1768890292107,223.13,6.679e-05,2]
[402760081,1768890292545,267.76,6.947e-05,2]
[402760082,1768890292987,312.38,7.214e-05,2]
[402760083,1768890293526,357.01,7.481e-05,2]
[402760084,1768890293951,401.64,7.748e-05,2]
[402760085,1768890294363,446.26,8.015e-05,2]
[402760086,1768890309703,2150.738,9.099e-05,2]
[402760087,1768890329504,239.27988472,9.099e-05,2]
[402760088,1768890329529,205.92288128,9.099e-05,2]
[402760092,1768890424795,9794.08711872,9e-05,2]
[402760093,1768890424819,10000.01,9e-05,2]
[402760094,1768890424843,10000.01,9e-05,2]
[402760095,1768890424867,10000.01,9e-05,2]
[402760096,1768890424891,10000.01,9e-05,2]
[402760097,1768890424917,10000.01,9e-05,2]
[402760098,1768890424941,10000.01,9e-05,2]
[402760099,1768890424964,10000.01,9e-05,2]
[402760100,1768890424988,10000.01,9e-05,2]
[402760101,1768890434662,-10000.01,9e-05,2]
[402760102,1768890434774,-10000.01,9e-05,2]
[402760103,1768890434910,-10000.01,9e-05,2]
[402760104,1768890435041,-10000.01,9e-05,2]
[402760105,1768890435151,-10000.01,9e-05,2]
[402760106,1768890437257,-10000.01,9e-05,2]
[402760107,1768890437473,-10000.01,9e-05,2]
[402760108,1768890437588,-10000.01,9e-05,2]
[402760109,1768890437762,-10000.01,9e-05,2]
[402760110,1768890443208,-10000.01,9e-05,2]
[402760111,1768890443359,-10000.01,9e-05,2]
[402760112,1768890443500,-10000.01,9e-05,2]
[402760113,1768890443626,-10000.01,9e-05,2]
[402760114,1768890443736,-10000.01,9e-05,2]
[402760115,1768890443853,-10000.01,9e-05,2]
[402760117,1768890458408,-10000.01,9e-05,2]
[402760118,1768890458557,-10000.01,9e-05,2]
[402760119,1768890458699,-10000.01,9e-05,2]
[402760120,1768890458825,-10000.01,9e-05,2]
[402760126,1768890498044,576.29,5.757e-05,2]
[402760128,1768890498452,1152.58,6.031e-05,2]
[402760129,1768890499407,1728.87,6.305e-05,2]
[402760130,1768890499833,2305.16,6.579e-05,2]
[402760131,1768890500290,2881.45,6.853e-05,2]
[402760133,1768890510692,-3457.74,7.127e-05,2]
[402760134,1768890510729,-3084.53,9e-05,2]
[402760135,1768890510888,-1331.70002378,9e-05,2]
[402760137,1768890513373,342.83457278,8.064e-05,2]
[402760138,1768890530411,4034.02,7.402e-05,2]
[402760139,1768890530892,2959.75537966,7.676e-05,2]
[402760140,1768890530920,1650.55462034,7.676e-05,2]
[402760141,1768890531318,5186.6,7.95e-05,2]
[402760142,1768890532227,3162.85537966,8.224e-05,2]
[402760143,1768890532255,2600.03462034,8.224e-05,2]
[402760154,1768890607311,238.09,6.904e-05,2]
[402760155,1768890607735,476.19,7.233e-05,2]
[402760156,1768890608165,714.28,7.562e-05,2]
[402760157,1768890608613,952.37,7.891e-05,2]
[402760158,1768890609075,1190.47,8.219e-05,2]
[402760159,1768890610031,1428.56,8.548e-05,2]
[402760160,1768890610465,1666.65,8.877e-05,2]
[402760200,1768890631674,-2721.48782758,9.099e-05,2]
[402760201,1768890631686,-8799.15462041,9.099e-05,2]
[402760202,1768890631696,-401.15789213,9.099e-05,2]
[402760234,1768890635492,733.36537966,8.999e-05,2]
[402760235,1768890635521,10000.01,8.999e-05,2]
[402760236,1768890635553,10000.01,8.999e-05,2]
[402760237,1768890635583,10000.01,8.999e-05,2]
[402760238,1768890635613,10000.01,8.999e-05,2]
[402760239,1768890635643,10000.01,8.999e-05,2]
[402760257,1768890637777,-28302.80735581,8.999e-05,2]
[402760258,1768890637787,-6065.63707087,8.999e-05,2]
[402760259,1768890637799,-1712.825972,8.999e-05,2]
[402760260,1768890637810,-1653.66874956,8.999e-05,2]
[402760261,1768890637820,-452.08800627,8.999e-05,2]
[402760262,1768890637831,-3390.31310178,8.999e-05,2]
[402760263,1768890637850,-967.72451616,8.999e-05,2]
[402760264,1768890637861,-2668.98,8.999e-05,2]
[402760265,1768890637872,-558.0997,8.999e-05,2]
[402760266,1768890637883,-7469.49929636,8.999e-05,2]
[402760267,1768890637892,-547.0,9.099e-05,2]
[402760268,1768890637901,-1904.75,9.206e-05,2]
[402760269,1768890637910,-2150.738,9.269e-05,2]
[402760270,1768890637919,-269.96779281,9.343e-05,2]
[402760271,1768890637928,-2142.84,9.535e-05,2]
[402760272,1768890637937,-461.67526834,9.647e-05,2]
[402760273,1768890637946,-2230.315306,9.817e-05,2]
[402760274,1768890637955,-2380.93,9.863e-05,2]
[402760275,1768890637967,-404.54479588,0.00010064,2]
[402760276,1768890637977,-1463.7637397,0.00010127,2]
[402760277,1768890637987,-478.75725327,0.00010195,2]
[402760278,1768890637997,-1780.1817454,0.00010249,2]
[402760279,1768890638009,-2312.83697232,0.00010365,2]
[402760280,1768890638018,-326.6098376,0.00010383,2]
[402760281,1768890638028,-50000.0,0.00010384,2]
[402760282,1768890638038,-496.47127164,0.00010743,2]
[402760283,1768890638048,-2398.4119403,0.00010913,2]